[Event "*** SCC Grand Prix: Titled Tuesday Blitz"]
[Site "Chess.com"]
[Date "2020.08.25"]
[Round "7"]
[White "Falcon28dz"]
[Black "Guenplen"]
[Result "0-1"]
[WhiteElo "2146"]
[BlackElo "2884"]
[TimeControl "180+1"]
[EndTime "11:20:49 PDT"]
[Termination "Guenplen won on time"]

1. e4 {[%clk 0:02:58.6]} 1... c5 {[%clk 0:02:59.8]} 2. Nf3 {[%clk 0:02:58.2]}
2... e6 {[%clk 0:02:59.9]} 3. Nc3 {[%clk 0:02:49.4]} 3... Nc6 {[%clk 0:02:59.5]}
4. d4 {[%clk 0:02:47]} 4... cxd4 {[%clk 0:03:00.4]} 5. Nxd4 {[%clk 0:02:46.3]}
5... Nf6 {[%clk 0:03:00.7]} 6. a3 {[%clk 0:02:41.4]} 6... d5 {[%clk 0:02:56.1]}
7. Bb5 {[%clk 0:02:35.7]} 7... Bd7 {[%clk 0:02:55.3]} 8. exd5 {[%clk 0:02:32.8]}
8... exd5 {[%clk 0:02:54.4]} 9. O-O {[%clk 0:02:28.9]} 9... Be7 {[%clk
0:02:54.2]} 10. Re1 {[%clk 0:02:22.5]} 10... O-O {[%clk 0:02:52.5]} 11. Bg5
{[%clk 0:02:17.9]} 11... a6 {[%clk 0:02:50.8]} 12. Ba4 {[%clk 0:01:33.7]} 12...
h6 {[%clk 0:02:46]} 13. Bh4 {[%clk 0:01:30.9]} 13... Re8 {[%clk 0:02:11.1]} 14.
Bb3 {[%clk 0:01:22.9]} 14... Qb6 {[%clk 0:01:56.2]} 15. Nf3 {[%clk 0:01:19.8]}
15... Be6 {[%clk 0:01:46]} 16. Bxf6 {[%clk 0:00:46.2]} 16... Bxf6 {[%clk
0:01:45.5]} 17. Nxd5 {[%clk 0:00:46.5]} 17... Bxd5 {[%clk 0:01:31.2]} 18. Qxd5
{[%clk 0:00:47.4]} 18... Rf8 {[%clk 0:01:31.1]} 19. Rab1 {[%clk 0:00:36.4]}
19... Rad8 {[%clk 0:01:28.7]} 20. Qf5 {[%clk 0:00:36.4]} 20... Qa5 {[%clk
0:01:18]} 21. Qxa5 {[%clk 0:00:27.9]} 21... Nxa5 {[%clk 0:01:18.9]} 22. Ba2
{[%clk 0:00:28.7]} 22... Nc6 {[%clk 0:01:11.1]} 23. c3 {[%clk 0:00:27.7]} 23...
Rd7 {[%clk 0:01:11.2]} 24. Rbd1 {[%clk 0:00:27.8]} 24... Rfd8 {[%clk 0:01:00.7]}
25. Re8+ {[%clk 0:00:19.5]} 25... Rxe8 {[%clk 0:00:46.2]} 26. Rxd7 {[%clk
0:00:18.4]} 26... Re7 {[%clk 0:00:46.7]} 27. Rxe7 {[%clk 0:00:17.3]} 27... Nxe7
{[%clk 0:00:46.9]} 28. Kf1 {[%clk 0:00:18]} 28... Kf8 {[%clk 0:00:45.9]} 29. Ke2
{[%clk 0:00:18.3]} 29... Nc8 {[%clk 0:00:42.8]} 30. Bd5 {[%clk 0:00:16.3]} 30...
Nd6 {[%clk 0:00:41.8]} 31. Kd3 {[%clk 0:00:13.1]} 31... Ke7 {[%clk 0:00:41.7]}
32. g4 {[%clk 0:00:12.5]} 32... b6 {[%clk 0:00:35.7]} 33. a4 {[%clk 0:00:12]}
33... a5 {[%clk 0:00:34.4]} 34. h4 {[%clk 0:00:12.1]} 34... g6 {[%clk
0:00:20.8]} 35. b4 {[%clk 0:00:12.2]} 35... Ne8 {[%clk 0:00:16.3]} 36. bxa5
{[%clk 0:00:11.6]} 36... bxa5 {[%clk 0:00:17.2]} 37. c4 {[%clk 0:00:11.7]} 37...
Nc7 {[%clk 0:00:15.6]} 38. h5 {[%clk 0:00:07.7]} 38... gxh5 {[%clk 0:00:14.7]}
39. gxh5 {[%clk 0:00:08.6]} 39... Na6 {[%clk 0:00:14.2]} 40. Bc6 {[%clk
0:00:05.9]} 40... Nc5+ {[%clk 0:00:13.3]} 41. Ke3 {[%clk 0:00:05.5]} 41... Kd6
{[%clk 0:00:14.2]} 42. Bb5 {[%clk 0:00:04.9]} 42... Bb2 {[%clk 0:00:11.3]} 43.
Nd2 {[%clk 0:00:05.3]} 43... Bc1 {[%clk 0:00:10.9]} 44. Ke2 {[%clk 0:00:04.4]}
44... Bxd2 {[%clk 0:00:11.2]} 45. Kxd2 {[%clk 0:00:05.3]} 45... Ke5 {[%clk
0:00:12.1]} 46. Ke3 {[%clk 0:00:05.7]} 46... Ne6 {[%clk 0:00:04.7]} 47. Bc6
{[%clk 0:00:06.1]} 47... Nc5 {[%clk 0:00:04.5]} 48. Bb5 {[%clk 0:00:05.9]} 48...
f6 {[%clk 0:00:04.5]} 49. f4+ {[%clk 0:00:05.6]} 49... Kd6 {[%clk 0:00:04.6]}
50. Kd4 {[%clk 0:00:04.1]} 50... f5 {[%clk 0:00:04.7]} 51. Be8 {[%clk
0:00:02.9]} 51... Ne6+ {[%clk 0:00:04.5]} 52. Kc3 {[%clk 0:00:02.8]} 52... Nxf4
{[%clk 0:00:04.3]} 0-1

[Event "*** SCC Grand Prix: Titled Tuesday Blitz"]
[Site "Chess.com"]
[Date "2020.08.25"]
[Round "7"]
[White "Vsevolod_Ovchinnikov"]
[Black "Aygehovit1992"]
[Result "1-0"]
[WhiteElo "2441"]
[BlackElo "2593"]
[TimeControl "180+1"]
[EndTime "11:20:57 PDT"]
[Termination "Vsevolod_Ovchinnikov won on time"]

1. d4 {[%clk 0:03:00.9]} 1... Nf6 {[%clk 0:02:59.7]} 2. c4 {[%clk 0:03:01.2]}
2... g6 {[%clk 0:02:59.6]} 3. Nc3 {[%clk 0:03:00.9]} 3... d5 {[%clk 0:02:59.9]}
4. Nf3 {[%clk 0:02:56.9]} 4... Bg7 {[%clk 0:02:59.4]} 5. h4 {[%clk 0:02:57.4]}
5... c6 {[%clk 0:02:58]} 6. Bg5 {[%clk 0:02:43.2]} 6... O-O {[%clk 0:02:51.6]}
7. e3 {[%clk 0:02:42.8]} 7... dxc4 {[%clk 0:02:24.7]} 8. Bxc4 {[%clk 0:02:40.9]}
8... b5 {[%clk 0:02:23.6]} 9. Bb3 {[%clk 0:02:35]} 9... Bg4 {[%clk 0:02:21.8]}
10. a4 {[%clk 0:02:29.5]} 10... b4 {[%clk 0:02:20]} 11. Ne2 {[%clk 0:02:28.8]}
11... Ne4 {[%clk 0:02:14.8]} 12. Bf4 {[%clk 0:02:13.9]} 12... Nd7 {[%clk
0:02:12.5]} 13. Qc2 {[%clk 0:01:44]} 13... Bf5 {[%clk 0:02:06]} 14. g4 {[%clk
0:01:01.1]} 14... Nxf2 {[%clk 0:01:17.5]} 15. gxf5 {[%clk 0:00:58.3]} 15... Nxh1
{[%clk 0:01:18.1]} 16. fxg6 {[%clk 0:00:56]} 16... hxg6 {[%clk 0:01:17.3]} 17.
Qxg6 {[%clk 0:00:34]} 17... e6 {[%clk 0:01:17.2]} 18. Qg2 {[%clk 0:00:29.3]}
18... Qf6 {[%clk 0:01:05.4]} 19. Qxh1 {[%clk 0:00:28.2]} 19... c5 {[%clk
0:01:05.8]} 20. Kf2 {[%clk 0:00:17.1]} 20... cxd4 {[%clk 0:01:05.9]} 21. exd4
{[%clk 0:00:18]} 21... Qf5 {[%clk 0:00:59.8]} 22. Rg1 {[%clk 0:00:17.5]} 22...
Kh8 {[%clk 0:00:52.5]} 23. Qg2 {[%clk 0:00:14]} 23... Rg8 {[%clk 0:00:51.3]} 24.
Qg5 {[%clk 0:00:14.1]} 24... Nf6 {[%clk 0:00:43.5]} 25. Qxf5 {[%clk 0:00:13.5]}
25... exf5 {[%clk 0:00:44.4]} 26. Bxf7 {[%clk 0:00:12.2]} 26... Rgf8 {[%clk
0:00:44.7]} 27. Bg6 {[%clk 0:00:11.2]} 27... Ne4+ {[%clk 0:00:43.7]} 28. Kg2
{[%clk 0:00:11.6]} 28... Rac8 {[%clk 0:00:43.2]} 29. Rc1 {[%clk 0:00:09.2]}
29... Rxc1 {[%clk 0:00:39.5]} 30. Nxc1 {[%clk 0:00:10.1]} 30... b3 {[%clk
0:00:39.3]} 31. Nxb3 {[%clk 0:00:09.9]} 31... Rf6 {[%clk 0:00:25.9]} 32. h5
{[%clk 0:00:09.9]} 32... Rb6 {[%clk 0:00:26]} 33. Bf7 {[%clk 0:00:08.4]} 33...
Bh6 {[%clk 0:00:18.8]} 34. Be5+ {[%clk 0:00:08]} 34... Kh7 {[%clk 0:00:18.4]}
35. a5 {[%clk 0:00:08.2]} 35... Rb4 {[%clk 0:00:13.5]} 36. Bg6+ {[%clk
0:00:07.6]} 36... Kg8 {[%clk 0:00:13.5]} 37. Bxf5 {[%clk 0:00:07.8]} 37... Rxb3
{[%clk 0:00:10.3]} 38. Be6+ {[%clk 0:00:07.2]} 38... Kf8 {[%clk 0:00:10.5]} 39.
Bxb3 {[%clk 0:00:07.7]} 39... Ke7 {[%clk 0:00:07.6]} 40. Bd5 {[%clk 0:00:07.8]}
40... Nd6 {[%clk 0:00:07.3]} 41. Nh4 {[%clk 0:00:05.8]} 41... Bc1 {[%clk
0:00:03.8]} 42. Ng6+ {[%clk 0:00:06.2]} 42... Kd7 {[%clk 0:00:03.9]} 43. b3
{[%clk 0:00:06.5]} 43... Nf5 {[%clk 0:00:01.4]} 44. Be4 {[%clk 0:00:05.1]} 44...
Ne3+ {[%clk 0:00:02.3]} 45. Kf3 {[%clk 0:00:05.2]} 45... Nd1 {[%clk 0:00:02.8]}
46. a6 {[%clk 0:00:05]} 46... Nb2 {[%clk 0:00:02.7]} 47. Bb7 {[%clk 0:00:04.8]}
47... Nd3 {[%clk 0:00:02.1]} 48. Bf4 {[%clk 0:00:04]} 48... Ne1+ {[%clk
0:00:03]} 49. Kg4 {[%clk 0:00:04.1]} 49... Bb2 {[%clk 0:00:02.8]} 50. Be5 {[%clk
0:00:03.5]} 50... Bc1 {[%clk 0:00:02.6]} 51. Nf4 {[%clk 0:00:02.8]} 51... Nc2
{[%clk 0:00:01.3]} 52. h6 {[%clk 0:00:01.9]} 52... Ne3+ {[%clk 0:00:02.2]} 53.
Kg5 {[%clk 0:00:02.3]} 1-0

[Event "*** SCC Grand Prix: Titled Tuesday Blitz"]
[Site "Chess.com"]
[Date "2020.08.25"]
[Round "7"]
[White "Kassimov_B"]
[Black "Witik"]
[Result "0-1"]
[WhiteElo "2435"]
[BlackElo "2661"]
[TimeControl "180+1"]
[EndTime "11:20:58 PDT"]
[Termination "Witik won by checkmate"]

1. d4 {[%clk 0:03:00.9]} 1... d5 {[%clk 0:02:58.8]} 2. Nf3 {[%clk 0:03:01]} 2...
e6 {[%clk 0:02:58.3]} 3. Bf4 {[%clk 0:03:00.6]} 3... Bd6 {[%clk 0:02:57.9]} 4.
Bxd6 {[%clk 0:02:57.4]} 4... cxd6 {[%clk 0:02:57.7]} 5. Nbd2 {[%clk 0:02:55.8]}
5... f5 {[%clk 0:02:35]} 6. e3 {[%clk 0:02:54.3]} 6... Nf6 {[%clk 0:02:34.4]} 7.
c4 {[%clk 0:02:53.9]} 7... O-O {[%clk 0:02:31.8]} 8. Bd3 {[%clk 0:02:53.3]} 8...
Nc6 {[%clk 0:02:27.2]} 9. a3 {[%clk 0:02:50]} 9... Kh8 {[%clk 0:02:24.3]} 10.
O-O {[%clk 0:02:49.2]} 10... Ne4 {[%clk 0:02:22.7]} 11. b4 {[%clk 0:02:46.3]}
11... Qf6 {[%clk 0:01:54]} 12. Qb3 {[%clk 0:02:36.7]} 12... Bd7 {[%clk
0:01:44.3]} 13. cxd5 {[%clk 0:02:33.9]} 13... exd5 {[%clk 0:01:44.3]} 14. Qxd5
{[%clk 0:02:28.8]} 14... Nxd2 {[%clk 0:01:19.4]} 15. Nxd2 {[%clk 0:02:27.8]}
15... Rad8 {[%clk 0:01:18.5]} 16. Rac1 {[%clk 0:02:18]} 16... a6 {[%clk
0:01:09.9]} 17. Qf3 {[%clk 0:02:17.2]} 17... f4 {[%clk 0:01:01.8]} 18. Ne4
{[%clk 0:01:46]} 18... Qh6 {[%clk 0:01:00.9]} 19. h3 {[%clk 0:01:25.4]} 19...
Be8 {[%clk 0:00:54.8]} 20. g4 {[%clk 0:01:02.7]} 20... Bg6 {[%clk 0:00:34.9]}
21. Bb1 {[%clk 0:00:41.8]} 21... Qh4 {[%clk 0:00:20.5]} 22. Nd2 {[%clk
0:00:35.1]} 22... fxe3 {[%clk 0:00:18.6]} 23. Qxe3 {[%clk 0:00:35.3]} 23... Rde8
{[%clk 0:00:18.9]} 24. Qg3 {[%clk 0:00:35]} 24... Qxg3+ {[%clk 0:00:18.8]} 25.
fxg3 {[%clk 0:00:35.9]} 25... Rxf1+ {[%clk 0:00:16.5]} 26. Rxf1 {[%clk
0:00:33.1]} 26... Bxb1 {[%clk 0:00:14.4]} 27. Nxb1 {[%clk 0:00:33.1]} 27... Nxd4
{[%clk 0:00:15]} 28. Rd1 {[%clk 0:00:33.3]} 28... Nc6 {[%clk 0:00:06.9]} 29. Kf2
{[%clk 0:00:32]} 29... Re6 {[%clk 0:00:05.7]} 30. Nc3 {[%clk 0:00:31.5]} 30...
h6 {[%clk 0:00:06.2]} 31. Nd5 {[%clk 0:00:28.5]} 31... Ne5 {[%clk 0:00:05.2]}
32. Rd4 {[%clk 0:00:21.2]} 32... b5 {[%clk 0:00:05]} 33. h4 {[%clk 0:00:20]}
33... Nc4 {[%clk 0:00:04.9]} 34. Rd3 {[%clk 0:00:18.6]} 34... Re5 {[%clk
0:00:03.5]} 35. Nf4 {[%clk 0:00:16.9]} 35... Re4 {[%clk 0:00:01.1]} 36. h5
{[%clk 0:00:15.5]} 36... Kh7 {[%clk 0:00:01.2]} 37. Rd5 {[%clk 0:00:15]} 37...
Re8 {[%clk 0:00:02.1]} 38. Rf5 {[%clk 0:00:14.8]} 38... Kg8 {[%clk 0:00:02.7]}
39. Ng6 {[%clk 0:00:14.2]} 39... Nxa3 {[%clk 0:00:02.5]} 40. Rd5 {[%clk
0:00:13.7]} 40... Nc2 {[%clk 0:00:02.8]} 41. Rxd6 {[%clk 0:00:13.4]} 41... Nxb4
{[%clk 0:00:03.5]} 42. Rb6 {[%clk 0:00:13.3]} 42... Nd5 {[%clk 0:00:03.4]} 43.
Rxa6 {[%clk 0:00:12.9]} 43... Ne3 {[%clk 0:00:03.5]} 44. Kf3 {[%clk 0:00:12.9]}
44... b4 {[%clk 0:00:03.5]} 45. Rb6 {[%clk 0:00:11.1]} 45... Nc2 {[%clk
0:00:04]} 46. Rb7 {[%clk 0:00:10.8]} 46... b3 {[%clk 0:00:04.2]} 47. Kf4 {[%clk
0:00:09.7]} 47... Nd4 {[%clk 0:00:04.1]} 48. g5 {[%clk 0:00:08.8]} 48... Ne6+
{[%clk 0:00:03.1]} 49. Kg4 {[%clk 0:00:09]} 49... Nxg5 {[%clk 0:00:03.9]} 50.
Rxb3 {[%clk 0:00:09.3]} 50... Re4+ {[%clk 0:00:04.7]} 51. Kf5 {[%clk 0:00:08.3]}
51... Re8 {[%clk 0:00:05.6]} 52. Rb7 {[%clk 0:00:08.3]} 52... Ne4 {[%clk
0:00:05.7]} 53. Ne7+ {[%clk 0:00:02.9]} 53... Kf7 {[%clk 0:00:05.5]} 54. Nd5+
{[%clk 0:00:03.1]} 54... Kf8 {[%clk 0:00:05.3]} 55. Nf4 {[%clk 0:00:03.4]} 55...
Nd6+ {[%clk 0:00:05.5]} 56. Kg6 {[%clk 0:00:03.7]} 56... Nxb7 {[%clk 0:00:06.4]}
57. Kh7 {[%clk 0:00:04.2]} 57... Kf7 {[%clk 0:00:06.3]} 58. Ng6 {[%clk
0:00:05.1]} 58... Nd6 {[%clk 0:00:06.1]} 59. g4 {[%clk 0:00:06]} 59... Ne4
{[%clk 0:00:06.3]} 60. g5 {[%clk 0:00:06.9]} 60... Nxg5# {[%clk 0:00:06.7]} 0-1

[Event "*** SCC Grand Prix: Titled Tuesday Blitz"]
[Site "Chess.com"]
[Date "2020.08.25"]
[Round "7"]
[White "BlackBoarder"]
[Black "margarita_2703"]
[Result "0-1"]
[WhiteElo "2530"]
[BlackElo "2408"]
[TimeControl "180+1"]
[EndTime "11:21:02 PDT"]
[Termination "margarita_2703 won by checkmate"]

1. e4 {[%clk 0:03:00.9]} 1... Nf6 {[%clk 0:02:58.2]} 2. Nc3 {[%clk 0:02:45.9]}
2... e5 {[%clk 0:02:58]} 3. Nf3 {[%clk 0:02:45.1]} 3... Nc6 {[%clk 0:02:54.9]}
4. Bb5 {[%clk 0:02:45]} 4... g6 {[%clk 0:02:51.8]} 5. Bxc6 {[%clk 0:02:31.2]}
5... dxc6 {[%clk 0:02:48.8]} 6. Nxe5 {[%clk 0:02:31.4]} 6... Bg7 {[%clk
0:02:41.5]} 7. O-O {[%clk 0:02:21.6]} 7... Nxe4 {[%clk 0:02:37.8]} 8. Nxf7
{[%clk 0:01:36.3]} 8... Nxc3 {[%clk 0:02:27.7]} 9. Qf3 {[%clk 0:01:34.4]} 9...
O-O {[%clk 0:02:05.3]} 10. Nxd8 {[%clk 0:01:25.1]} 10... Rxf3 {[%clk 0:02:02.9]}
11. dxc3 {[%clk 0:01:18]} 11... Rf8 {[%clk 0:01:46.2]} 12. Bg5 {[%clk
0:01:01.7]} 12... h6 {[%clk 0:01:46.1]} 13. Be7 {[%clk 0:01:00.6]} 13... Re8
{[%clk 0:01:44.8]} 14. Rfe1 {[%clk 0:00:57]} 14... Bf5 {[%clk 0:01:44.7]} 15.
Nxb7 {[%clk 0:00:54.6]} 15... Rab8 {[%clk 0:01:41.1]} 16. Na5 {[%clk 0:00:41.9]}
16... Rxb2 {[%clk 0:01:40.1]} 17. Nxc6 {[%clk 0:00:19.7]} 17... Bxc3 {[%clk
0:01:31.6]} 18. Re3 {[%clk 0:00:18.3]} 18... Rxc2 {[%clk 0:01:21.7]} 19. Rd1
{[%clk 0:00:15.4]} 19... Bg7 {[%clk 0:01:15.7]} 20. Nxa7 {[%clk 0:00:09.2]}
20... Bd4 {[%clk 0:01:03.7]} 21. Ree1 {[%clk 0:00:01.7]} 21... Bxa7 {[%clk
0:00:56.7]} 22. Bh4 {[%clk 0:00:01.6]} 22... Rxe1+ {[%clk 0:00:53.9]} 23. Rxe1
{[%clk 0:00:02.5]} 23... Rxa2 {[%clk 0:00:52.1]} 24. h3 {[%clk 0:00:02.7]} 24...
c5 {[%clk 0:00:48.6]} 25. Re7 {[%clk 0:00:01.1]} 25... c4 {[%clk 0:00:45.5]} 26.
Rc7 {[%clk 0:00:01.4]} 26... Ra3 {[%clk 0:00:38.8]} 27. Bf6 {[%clk 0:00:01.1]}
27... Bd3 {[%clk 0:00:34]} 28. g4 {[%clk 0:00:01.1]} 28... Ra2 {[%clk
0:00:29.9]} 29. Kg2 {[%clk 0:00:01.4]} 29... Rxf2+ {[%clk 0:00:25.2]} 30. Kg3
{[%clk 0:00:01.9]} 30... Rxf6 {[%clk 0:00:24.1]} 31. Rxa7 {[%clk 0:00:01.9]}
31... c3 {[%clk 0:00:20.9]} 32. Rc7 {[%clk 0:00:01.8]} 32... c2 {[%clk
0:00:20.8]} 33. g5 {[%clk 0:00:02.3]} 33... Rf1 {[%clk 0:00:20.4]} 34. gxh6
{[%clk 0:00:02.4]} 34... c1=Q {[%clk 0:00:20.2]} 35. h7+ {[%clk 0:00:03]} 35...
Kh8 {[%clk 0:00:19.5]} 36. Rxc1 {[%clk 0:00:02.2]} 36... Rxc1 {[%clk 0:00:18.9]}
37. Kf4 {[%clk 0:00:02.9]} 37... Kxh7 {[%clk 0:00:18]} 38. Kg5 {[%clk
0:00:03.6]} 38... Bf5 {[%clk 0:00:16.6]} 39. Kh4 {[%clk 0:00:03.7]} 39... Bxh3
{[%clk 0:00:15.2]} 40. Kg5 {[%clk 0:00:03.5]} 40... Rc6 {[%clk 0:00:14.4]} 41.
Kh4 {[%clk 0:00:03.7]} 41... Rc5 {[%clk 0:00:14.5]} 42. Kg3 {[%clk 0:00:03.6]}
42... Kh6 {[%clk 0:00:14.6]} 43. Kh4 {[%clk 0:00:03.9]} 43... g5+ {[%clk
0:00:13.6]} 44. Kg3 {[%clk 0:00:04.1]} 44... Kh5 {[%clk 0:00:13.1]} 45. Kf3
{[%clk 0:00:03.6]} 45... Rc4 {[%clk 0:00:11.8]} 46. Kg3 {[%clk 0:00:03.8]} 46...
Bc8 {[%clk 0:00:11.5]} 47. Kf3 {[%clk 0:00:04.1]} 47... Bb7+ {[%clk 0:00:11.1]}
48. Ke3 {[%clk 0:00:04.2]} 48... Ra4 {[%clk 0:00:11.1]} 49. Kd3 {[%clk
0:00:04.3]} 49... g4 {[%clk 0:00:11.3]} 50. Kc3 {[%clk 0:00:04.8]} 50... g3
{[%clk 0:00:11.7]} 51. Kb3 {[%clk 0:00:05.4]} 51... g2 {[%clk 0:00:12.1]} 52.
Kxa4 {[%clk 0:00:05.6]} 52... g1=Q {[%clk 0:00:12.4]} 53. Kb5 {[%clk 0:00:05.7]}
53... Qc1 {[%clk 0:00:12]} 54. Kb6 {[%clk 0:00:05.5]} 54... Bh1 {[%clk 0:00:10]}
55. Ka5 {[%clk 0:00:05.4]} 55... Kg6 {[%clk 0:00:09.7]} 56. Kb5 {[%clk
0:00:05.5]} 56... Kf6 {[%clk 0:00:08.9]} 57. Kb6 {[%clk 0:00:06.1]} 57... Ke6
{[%clk 0:00:09.1]} 58. Ka5 {[%clk 0:00:06.6]} 58... Kd5 {[%clk 0:00:08.9]} 59.
Kb4 {[%clk 0:00:07.2]} 59... Qc4+ {[%clk 0:00:07.8]} 60. Ka3 {[%clk 0:00:07.5]}
60... Qb5 {[%clk 0:00:07.9]} 61. Ka2 {[%clk 0:00:07.7]} 61... Kc4 {[%clk
0:00:07.9]} 62. Ka1 {[%clk 0:00:08.2]} 62... Kc3 {[%clk 0:00:08]} 63. Ka2 {[%clk
0:00:09.1]} 63... Qb2# {[%clk 0:00:08.1]} 0-1

[Event "*** SCC Grand Prix: Titled Tuesday Blitz"]
[Site "Chess.com"]
[Date "2020.08.25"]
[Round "7"]
[White "salomez"]
[Black "Lenyas66"]
[Result "1/2-1/2"]
[WhiteElo "2240"]
[BlackElo "2455"]
[TimeControl "180+1"]
[EndTime "11:21:11 PDT"]
[Termination "Game drawn - insufficient material"]

1. e4 {[%clk 0:03:00.9]} 1... c5 {[%clk 0:02:59.3]} 2. Nf3 {[%clk 0:03:01.2]}
2... Nc6 {[%clk 0:02:54.9]} 3. Bb5 {[%clk 0:02:58.5]} 3... g6 {[%clk 0:02:54.5]}
4. O-O {[%clk 0:02:57.6]} 4... Bg7 {[%clk 0:02:54.7]} 5. Re1 {[%clk 0:02:58.2]}
5... Nf6 {[%clk 0:02:54.1]} 6. e5 {[%clk 0:02:58.8]} 6... Nd5 {[%clk 0:02:52.6]}
7. Nc3 {[%clk 0:02:59.4]} 7... Nc7 {[%clk 0:02:40.5]} 8. Bxc6 {[%clk 0:02:59.6]}
8... dxc6 {[%clk 0:02:40.1]} 9. Ne4 {[%clk 0:03:00.1]} 9... b6 {[%clk
0:02:39.9]} 10. Nf6+ {[%clk 0:02:56.3]} 10... Kf8 {[%clk 0:02:34.9]} 11. Ne4
{[%clk 0:02:56.1]} 11... h6 {[%clk 0:02:21.4]} 12. d3 {[%clk 0:02:55.6]} 12...
Be6 {[%clk 0:02:11.2]} 13. b3 {[%clk 0:02:55.8]} 13... Kg8 {[%clk 0:02:07]} 14.
Bb2 {[%clk 0:02:56.3]} 14... Kh7 {[%clk 0:02:06.7]} 15. d4 {[%clk 0:02:55.9]}
15... c4 {[%clk 0:02:00.5]} 16. Qe2 {[%clk 0:02:21.1]} 16... cxb3 {[%clk
0:01:50.5]} 17. axb3 {[%clk 0:02:18.8]} 17... Re8 {[%clk 0:01:43.5]} 18. c4
{[%clk 0:02:18.8]} 18... Kg8 {[%clk 0:01:43.3]} 19. Rad1 {[%clk 0:02:14.8]}
19... Qc8 {[%clk 0:01:41.6]} 20. h3 {[%clk 0:02:13.5]} 20... Rd8 {[%clk
0:01:32.5]} 21. Ng3 {[%clk 0:02:03.7]} 21... b5 {[%clk 0:01:26.6]} 22. Ne4
{[%clk 0:01:51.9]} 22... bxc4 {[%clk 0:01:15.3]} 23. bxc4 {[%clk 0:01:51]} 23...
Rb8 {[%clk 0:01:07.1]} 24. Nc5 {[%clk 0:01:47.7]} 24... Bxc4 {[%clk 0:01:05]}
25. Qxc4 {[%clk 0:01:38.8]} 25... Rxb2 {[%clk 0:01:05]} 26. e6 {[%clk
0:01:34.4]} 26... f5 {[%clk 0:00:55.6]} 27. Nd7 {[%clk 0:01:28.8]} 27... Nd5
{[%clk 0:00:51.1]} 28. Nfe5 {[%clk 0:01:23.5]} 28... Kh7 {[%clk 0:00:49.9]} 29.
Nf7 {[%clk 0:01:20.4]} 29... Rxd7 {[%clk 0:00:47]} 30. exd7 {[%clk 0:01:19.5]}
30... Qxd7 {[%clk 0:00:47]} 31. Ne5 {[%clk 0:01:18.3]} 31... Bxe5 {[%clk
0:00:45.3]} 32. dxe5 {[%clk 0:01:09.3]} 32... Qe6 {[%clk 0:00:35]} 33. Rb1
{[%clk 0:01:03.4]} 33... Rb6 {[%clk 0:00:25.2]} 34. Ra1 {[%clk 0:00:53.4]} 34...
Rb7 {[%clk 0:00:21.7]} 35. Ra6 {[%clk 0:00:50]} 35... Rc7 {[%clk 0:00:18.2]} 36.
f4 {[%clk 0:00:38.7]} 36... Kg7 {[%clk 0:00:16.6]} 37. Rc1 {[%clk 0:00:35.7]}
37... Kf7 {[%clk 0:00:15.7]} 38. g3 {[%clk 0:00:28.9]} 38... g5 {[%clk 0:00:15]}
39. Rxc6 {[%clk 0:00:23.8]} 39... Rxc6 {[%clk 0:00:14.4]} 40. Qxc6 {[%clk
0:00:23.4]} 40... Qxc6 {[%clk 0:00:14.4]} 41. Rxc6 {[%clk 0:00:22.8]} 41... gxf4
{[%clk 0:00:14.5]} 42. gxf4 {[%clk 0:00:21]} 42... Nxf4 {[%clk 0:00:11.2]} 43.
Rxh6 {[%clk 0:00:20.9]} 43... Ng6 {[%clk 0:00:11.3]} 44. e6+ {[%clk 0:00:16.7]}
44... Kg7 {[%clk 0:00:11.1]} 45. Rh5 {[%clk 0:00:16.5]} 45... Kf6 {[%clk
0:00:11.3]} 46. Rh6 {[%clk 0:00:14.7]} 46... a5 {[%clk 0:00:10.6]} 47. h4 {[%clk
0:00:09.1]} 47... Kg7 {[%clk 0:00:07.1]} 48. Rh5 {[%clk 0:00:08.4]} 48... Kf6
{[%clk 0:00:07.2]} 49. Rg5 {[%clk 0:00:06]} 49... Nxh4 {[%clk 0:00:06.4]} 50.
Rg2 {[%clk 0:00:04.3]} 50... Kxe6 {[%clk 0:00:06.2]} 51. Ra2 {[%clk 0:00:03.3]}
51... Kf6 {[%clk 0:00:06]} 52. Rxa5 {[%clk 0:00:03.6]} 52... e5 {[%clk
0:00:05.9]} 53. Kf2 {[%clk 0:00:03.4]} 53... Ng6 {[%clk 0:00:05.6]} 54. Ra6+
{[%clk 0:00:03.4]} 54... Kg5 {[%clk 0:00:05.8]} 55. Re6 {[%clk 0:00:03.2]} 55...
e4 {[%clk 0:00:06]} 56. Ke3 {[%clk 0:00:02.6]} 56... Nf4 {[%clk 0:00:05.5]} 57.
Re8 {[%clk 0:00:01.7]} 57... Nd5+ {[%clk 0:00:05.6]} 58. Kd4 {[%clk 0:00:01.9]}
58... Nf6 {[%clk 0:00:05.6]} 59. Rf8 {[%clk 0:00:01.6]} 59... Ng4 {[%clk
0:00:05.4]} 60. Rg8+ {[%clk 0:00:01]} 60... Kf4 {[%clk 0:00:05.7]} 61. Rf8
{[%clk 0:00:01.3]} 61... e3 {[%clk 0:00:05.8]} 62. Kd3 {[%clk 0:00:01.4]} 62...
Ne5+ {[%clk 0:00:05.9]} 63. Ke2 {[%clk 0:00:01.3]} 63... Nf3 {[%clk 0:00:05.6]}
64. Rxf5+ {[%clk 0:00:01.4]} 64... Kxf5 {[%clk 0:00:04.4]} 65. Kxe3 {[%clk
0:00:02.3]} 1/2-1/2